[Event "*** Titled Tuesday Blitz"]
[Site "Chess.com"]
[Date "2020.05.26"]
[Round "5"]
[White "124chess"]
[Black "ChessWarrior7197"]
[Result "0-1"]
[WhiteElo "2770"]
[BlackElo "2914"]
[TimeControl "180+1"]
[EndTime "10:56:31 PDT"]
[Termination "ChessWarrior7197 won by resignation"]

1. d4 {[%clk 0:03:00.9]} 1... d5 {[%clk 0:02:59.7]} 2. Nf3 {[%clk 0:03:00.5]}
2... e6 {[%clk 0:02:59.9]} 3. c4 {[%clk 0:02:59.5]} 3... c5 {[%clk 0:03:00]} 4.
cxd5 {[%clk 0:02:58.3]} 4... exd5 {[%clk 0:03:00.9]} 5. Nc3 {[%clk 0:02:57.2]}
5... Nc6 {[%clk 0:03:00.7]} 6. g3 {[%clk 0:02:57.8]} 6... Nf6 {[%clk 0:03:00.6]}
7. Bg2 {[%clk 0:02:58.3]} 7... cxd4 {[%clk 0:03:01.2]} 8. Nxd4 {[%clk
0:02:59.2]} 8... Bc5 {[%clk 0:03:01.1]} 9. Nb3 {[%clk 0:02:59.4]} 9... Bb6
{[%clk 0:03:01.1]} 10. O-O {[%clk 0:02:59.8]} 10... d4 {[%clk 0:03:01.7]} 11.
Na4 {[%clk 0:02:54.2]} 11... O-O {[%clk 0:03:00.7]} 12. Bg5 {[%clk 0:02:54.5]}
12... Re8 {[%clk 0:02:59.5]} 13. Re1 {[%clk 0:02:54.2]} 13... h6 {[%clk
0:02:59.3]} 14. Nxb6 {[%clk 0:02:51.6]} 14... axb6 {[%clk 0:02:59.2]} 15. Bxf6
{[%clk 0:02:51.9]} 15... Qxf6 {[%clk 0:03:00.1]} 16. Bxc6 {[%clk 0:02:51.3]}
16... bxc6 {[%clk 0:03:01]} 17. Qxd4 {[%clk 0:02:51.7]} 17... Qd8 {[%clk
0:03:00.1]} 18. Qc3 {[%clk 0:02:33.3]} 18... c5 {[%clk 0:02:58.5]} 19. Rad1
{[%clk 0:02:32.8]} 19... Qe7 {[%clk 0:02:52.2]} 20. a3 {[%clk 0:02:32.4]} 20...
Ba6 {[%clk 0:02:50.3]} 21. e4 {[%clk 0:02:27.9]} 21... Rad8 {[%clk 0:02:47.9]}
22. f3 {[%clk 0:02:24]} 22... Rd7 {[%clk 0:02:44.9]} 23. Rd2 {[%clk 0:02:07.1]}
23... Rxd2 {[%clk 0:02:40.9]} 24. Nxd2 {[%clk 0:02:08]} 24... Rd8 {[%clk
0:02:40.6]} 25. Nc4 {[%clk 0:02:05]} 25... Qe6 {[%clk 0:02:37.4]} 26. Ne3 {[%clk
0:01:53.7]} 26... Rd3 {[%clk 0:02:26.4]} 27. Qc2 {[%clk 0:01:53.1]} 27... Qb3
{[%clk 0:02:26.2]} 28. Qf2 {[%clk 0:01:31.9]} 28... h5 {[%clk 0:02:23.4]} 29.
Kg2 {[%clk 0:01:11.7]} 29... Bb7 {[%clk 0:02:16.5]} 30. Nf5 {[%clk 0:00:58.6]}
30... g6 {[%clk 0:02:10.2]} 31. Ne3 {[%clk 0:00:52.3]} 31... b5 {[%clk
0:01:57.2]} 32. Re2 {[%clk 0:00:46.8]} 32... c4 {[%clk 0:01:49.2]} 33. g4 {[%clk
0:00:46.8]} 33... h4 {[%clk 0:01:48.2]} 34. g5 {[%clk 0:00:43.1]} 34... Bc8
{[%clk 0:01:16.5]} 35. Nd5 {[%clk 0:00:39]} 35... h3+ {[%clk 0:01:10.1]} 36. Kg3
{[%clk 0:00:36.3]} 36... Be6 {[%clk 0:01:10.3]} 37. Nf6+ {[%clk 0:00:33.8]}
37... Kg7 {[%clk 0:01:08.5]} 38. Rd2 {[%clk 0:00:29.5]} 38... b4 {[%clk
0:01:02.5]} 39. axb4 {[%clk 0:00:28.3]} 39... Qxb4 {[%clk 0:01:02.5]} 40. Rxd3
{[%clk 0:00:24.3]} 40... cxd3 {[%clk 0:01:03.4]} 41. Qa7 {[%clk 0:00:11.9]}
41... d2 {[%clk 0:00:45.7]} 42. Qa8 {[%clk 0:00:11.9]} 42... Qf8 {[%clk
0:00:39.3]} 43. Qb7 {[%clk 0:00:09.6]} 43... d1=Q {[%clk 0:00:37]} 0-1

[Event "*** Titled Tuesday Blitz"]
[Site "Chess.com"]
[Date "2020.05.26"]
[Round "5"]
[White "wonderfultime"]
[Black "JTCoach"]
[Result "1-0"]
[WhiteElo "2963"]
[BlackElo "2659"]
[TimeControl "180+1"]
[EndTime "10:56:31 PDT"]
[Termination "wonderfultime won on time"]

1. d4 {[%clk 0:03:00.9]} 1... Nf6 {[%clk 0:02:59.8]} 2. Nf3 {[%clk 0:03:00.7]}
2... d5 {[%clk 0:02:59.8]} 3. Bf4 {[%clk 0:03:01.1]} 3... c5 {[%clk 0:03:00.1]}
4. c3 {[%clk 0:03:01.3]} 4... Nc6 {[%clk 0:03:00.4]} 5. e3 {[%clk 0:03:01.6]}
5... Qb6 {[%clk 0:02:58.1]} 6. Qc2 {[%clk 0:03:02.1]} 6... Nh5 {[%clk
0:02:55.9]} 7. Be5 {[%clk 0:02:55.1]} 7... f6 {[%clk 0:02:55.1]} 8. dxc5 {[%clk
0:02:54.4]} 8... Qxc5 {[%clk 0:02:55.3]} 9. Bd4 {[%clk 0:02:55]} 9... Qa5 {[%clk
0:02:55.5]} 10. b4 {[%clk 0:02:18.5]} 10... Qc7 {[%clk 0:02:53.2]} 11. b5 {[%clk
0:02:13.5]} 11... Nxd4 {[%clk 0:02:50.5]} 12. exd4 {[%clk 0:02:14.4]} 12... e5
{[%clk 0:02:47.9]} 13. g3 {[%clk 0:01:56.3]} 13... e4 {[%clk 0:02:18.2]} 14.
Nfd2 {[%clk 0:01:53.7]} 14... f5 {[%clk 0:02:17.3]} 15. Be2 {[%clk 0:01:54.1]}
15... Nf6 {[%clk 0:02:16.6]} 16. c4 {[%clk 0:01:49.9]} 16... Bb4 {[%clk
0:01:57.3]} 17. Qb3 {[%clk 0:01:38.6]} 17... Ba5 {[%clk 0:01:47.5]} 18. O-O
{[%clk 0:01:31.8]} 18... f4 {[%clk 0:01:35.5]} 19. cxd5 {[%clk 0:01:27.3]} 19...
f3 {[%clk 0:01:31.6]} 20. Bc4 {[%clk 0:01:20]} 20... Qd7 {[%clk 0:01:20.9]} 21.
Re1 {[%clk 0:01:16.1]} 21... O-O {[%clk 0:01:15.8]} 22. Nc3 {[%clk 0:01:16]}
22... Bxc3 {[%clk 0:01:09.4]} 23. Qxc3 {[%clk 0:01:14.2]} 23... Qg4 {[%clk
0:00:41.5]} 24. Qe3 {[%clk 0:00:33.9]} 24... Qh5 {[%clk 0:00:30.9]} 25. h4
{[%clk 0:00:26.4]} 25... Bf5 {[%clk 0:00:27.7]} 26. Qg5 {[%clk 0:00:26]} 26...
Qg6 {[%clk 0:00:14.7]} 27. Rac1 {[%clk 0:00:21]} 27... Rad8 {[%clk 0:00:14.1]}
28. Bb3 {[%clk 0:00:20.5]} 28... Rd6 {[%clk 0:00:13.7]} 29. Nc4 {[%clk
0:00:19.3]} 29... Rdd8 {[%clk 0:00:11.7]} 30. Ne5 {[%clk 0:00:19.6]} 30... Qxg5
{[%clk 0:00:09.5]} 31. hxg5 {[%clk 0:00:20.5]} 31... Nxd5 {[%clk 0:00:03.7]} 32.
Rc5 {[%clk 0:00:20.5]} 32... Be6 {[%clk 0:00:03.9]} 33. Rxe4 {[%clk 0:00:20.2]}
33... b6 {[%clk 0:00:04.5]} 34. Rc6 {[%clk 0:00:20.4]} 34... Bf5 {[%clk
0:00:03.7]} 35. Rf4 {[%clk 0:00:15.2]} 35... Kh8 {[%clk 0:00:02.7]} 36. Bxd5
{[%clk 0:00:11.4]} 1-0

[Event "*** Titled Tuesday Blitz"]
[Site "Chess.com"]
[Date "2020.05.26"]
[Round "5"]
[White "Maxim_e2e4"]
[Black "BEEkhishig"]
[Result "0-1"]
[WhiteElo "2332"]
[BlackElo "2607"]
[TimeControl "180+1"]
[EndTime "10:56:31 PDT"]
[Termination "BEEkhishig won on time"]

1. e4 {[%clk 0:02:21.9]} 1... c6 {[%clk 0:02:59]} 2. d4 {[%clk 0:02:21.1]} 2...
d5 {[%clk 0:02:59.5]} 3. exd5 {[%clk 0:02:21.4]} 3... cxd5 {[%clk 0:02:59.6]} 4.
Bd3 {[%clk 0:02:21.9]} 4... Nf6 {[%clk 0:03:00.5]} 5. c3 {[%clk 0:02:19.1]} 5...
Nc6 {[%clk 0:03:01.4]} 6. Bf4 {[%clk 0:02:18]} 6... g6 {[%clk 0:03:01.7]} 7. Nf3
{[%clk 0:02:16]} 7... Bf5 {[%clk 0:03:01.4]} 8. O-O {[%clk 0:02:15.1]} 8... Bxd3
{[%clk 0:03:00.6]} 9. Qxd3 {[%clk 0:02:14.3]} 9... e6 {[%clk 0:03:01.5]} 10.
Nbd2 {[%clk 0:02:12]} 10... Bd6 {[%clk 0:03:01.4]} 11. Bxd6 {[%clk 0:01:57]}
11... Qxd6 {[%clk 0:03:02.3]} 12. Rfe1 {[%clk 0:01:52.3]} 12... Qc7 {[%clk
0:03:02.2]} 13. a4 {[%clk 0:01:29.5]} 13... O-O {[%clk 0:03:01]} 14. Qe3 {[%clk
0:01:24.1]} 14... Kg7 {[%clk 0:02:44.2]} 15. Qg5 {[%clk 0:01:21.5]} 15... h6
{[%clk 0:02:39.5]} 16. Qe3 {[%clk 0:01:12.5]} 16... Rab8 {[%clk 0:02:30.1]} 17.
h3 {[%clk 0:01:11.1]} 17... Rfc8 {[%clk 0:02:07.5]} 18. Re2 {[%clk 0:00:57.9]}
18... Nd7 {[%clk 0:01:59.4]} 19. Qd3 {[%clk 0:00:52.3]} 19... a6 {[%clk
0:01:51.7]} 20. Rae1 {[%clk 0:00:50.2]} 20... b5 {[%clk 0:01:44.9]} 21. axb5
{[%clk 0:00:48.6]} 21... axb5 {[%clk 0:01:45.8]} 22. b4 {[%clk 0:00:48]} 22...
Ne7 {[%clk 0:01:39.6]} 23. Rc1 {[%clk 0:00:45]} 23... Ra8 {[%clk 0:01:37.2]} 24.
Nb3 {[%clk 0:00:34.3]} 24... Ra3 {[%clk 0:01:25.7]} 25. Nc5 {[%clk 0:00:33.1]}
25... Qf4 {[%clk 0:01:05.4]} 26. Rce1 {[%clk 0:00:30.8]} 26... Nxc5 {[%clk
0:00:58]} 27. dxc5 {[%clk 0:00:30.1]} 27... Qxb4 {[%clk 0:00:39.5]} 28. Rxe6
{[%clk 0:00:20.5]} 28... fxe6 {[%clk 0:00:24.3]} 29. Rxe6 {[%clk 0:00:17.3]}
29... Qxc5 {[%clk 0:00:24.3]} 30. Ne5 {[%clk 0:00:11.6]} 30... Rxc3 {[%clk
0:00:11.9]} 31. Rxg6+ {[%clk 0:00:08.2]} 31... Kf8 {[%clk 0:00:10.9]} 32. Qe2
{[%clk 0:00:04.3]} 32... Qd4 {[%clk 0:00:07.6]} 33. Qh5 {[%clk 0:00:03.5]} 33...
Qf4 {[%clk 0:00:06.6]} 0-1

[Event "*** Titled Tuesday Blitz"]
[Site "Chess.com"]
[Date "2020.05.26"]
[Round "5"]
[White "Alopekos"]
[Black "Ladislav1969"]
[Result "1-0"]
[WhiteElo "2514"]
[BlackElo "2320"]
[TimeControl "180+1"]
[EndTime "10:56:32 PDT"]
[Termination "Alopekos won by resignation"]

1. e4 {[%clk 0:03:00.9]} 1... c5 {[%clk 0:02:59.5]} 2. Nc3 {[%clk 0:03:00.3]}
2... Nc6 {[%clk 0:02:59.2]} 3. Nge2 {[%clk 0:02:59.7]} 3... e6 {[%clk
0:02:56.8]} 4. d4 {[%clk 0:02:59.9]} 4... cxd4 {[%clk 0:02:56.5]} 5. Nxd4 {[%clk
0:03:00.8]} 5... Qc7 {[%clk 0:02:56.8]} 6. Be3 {[%clk 0:03:00.7]} 6... Nf6
{[%clk 0:02:56.3]} 7. Be2 {[%clk 0:03:00.5]} 7... Bb4 {[%clk 0:02:56.4]} 8. Nb5
{[%clk 0:02:48.7]} 8... Qb8 {[%clk 0:02:50.7]} 9. a3 {[%clk 0:02:45.6]} 9... Be7
{[%clk 0:02:49.3]} 10. f4 {[%clk 0:02:33.2]} 10... a6 {[%clk 0:02:43.9]} 11. Nd4
{[%clk 0:02:32.1]} 11... d5 {[%clk 0:02:19]} 12. e5 {[%clk 0:02:26.2]} 12... Nd7
{[%clk 0:02:18.7]} 13. O-O {[%clk 0:02:15.8]} 13... g6 {[%clk 0:02:16]} 14. Kh1
{[%clk 0:01:22]} 14... Nxd4 {[%clk 0:02:13.8]} 15. Bxd4 {[%clk 0:01:20.3]} 15...
b5 {[%clk 0:02:14.7]} 16. Bf3 {[%clk 0:01:08.7]} 16... b4 {[%clk 0:01:59.9]} 17.
axb4 {[%clk 0:01:07.1]} 17... Qxb4 {[%clk 0:01:59.3]} 18. Nxd5 {[%clk
0:00:43.5]} 18... exd5 {[%clk 0:01:53.4]} 19. Bxd5 {[%clk 0:00:24.2]} 19... Bb7
{[%clk 0:01:50.3]} 20. c3 {[%clk 0:00:23.9]} 20... Qb5 {[%clk 0:01:33.7]} 21. c4
{[%clk 0:00:24]} 21... Qb4 {[%clk 0:01:14.1]} 22. Ra4 {[%clk 0:00:22.9]} 22...
Bxd5 {[%clk 0:01:10.5]} 23. Rxb4 {[%clk 0:00:22.5]} 23... Bxb4 {[%clk
0:01:07.4]} 24. cxd5 {[%clk 0:00:21.9]} 24... O-O {[%clk 0:01:03.9]} 25. e6
{[%clk 0:00:19.8]} 25... fxe6 {[%clk 0:00:58.1]} 26. dxe6 {[%clk 0:00:20.7]}
26... Nf6 {[%clk 0:00:58.2]} 27. Qb3 {[%clk 0:00:07.6]} 27... Be7 {[%clk
0:00:57.9]} 28. f5 {[%clk 0:00:08.2]} 28... Rab8 {[%clk 0:00:56.6]} 29. Qg3
{[%clk 0:00:06.5]} 29... Nh5 {[%clk 0:00:51.5]} 30. Qe5 {[%clk 0:00:06]} 30...
Bf6 {[%clk 0:00:50.5]} 31. Qe3 {[%clk 0:00:05.6]} 31... Bxd4 {[%clk 0:00:28.6]}
32. Qxd4 {[%clk 0:00:06.5]} 32... Rxf5 {[%clk 0:00:28.7]} 33. Rxf5 {[%clk
0:00:06]} 33... gxf5 {[%clk 0:00:28.9]} 34. e7 {[%clk 0:00:05.9]} 34... Ng7
{[%clk 0:00:27.9]} 35. Qd8+ {[%clk 0:00:05.2]} 35... Kf7 {[%clk 0:00:20.3]} 36.
Qxb8 {[%clk 0:00:03.8]} 36... Kxe7 {[%clk 0:00:21.2]} 37. Qb7+ {[%clk
0:00:03.8]} 37... Kf6 {[%clk 0:00:21.7]} 38. Qxa6+ {[%clk 0:00:04.7]} 38... Ne6
{[%clk 0:00:22.3]} 39. Qa1 {[%clk 0:00:04.2]} 39... Ke5 {[%clk 0:00:23.2]} 40.
b4+ {[%clk 0:00:04.3]} 40... Nd4 {[%clk 0:00:24.1]} 41. b5 {[%clk 0:00:04.4]}
41... Ke4 {[%clk 0:00:25]} 42. b6 {[%clk 0:00:04.9]} 42... Ne2 {[%clk
0:00:25.7]} 43. b7 {[%clk 0:00:04.9]} 43... Ng3+ {[%clk 0:00:26.6]} 44. hxg3
{[%clk 0:00:04.9]} 1-0

[Event "*** Titled Tuesday Blitz"]
[Site "Chess.com"]
[Date "2020.05.26"]
[Round "5"]
[White "BIG_Pirate"]
[Black "Konovalova_Vera"]
[Result "0-1"]
[WhiteElo "2309"]
[BlackElo "2168"]
[TimeControl "180+1"]
[EndTime "10:56:32 PDT"]
[Termination "Konovalova_Vera won on time"]

1. Nf3 {[%clk 0:03:00.9]} 1... Nf6 {[%clk 0:02:57.1]} 2. c4 {[%clk 0:03:00.9]}
2... e6 {[%clk 0:02:57.2]} 3. g3 {[%clk 0:03:00.6]} 3... Bc5 {[%clk 0:02:56.7]}
4. Bg2 {[%clk 0:02:59.9]} 4... Nc6 {[%clk 0:02:56.6]} 5. O-O {[%clk 0:02:59.5]}
5... b6 {[%clk 0:02:56.2]} 6. d4 {[%clk 0:02:58.3]} 6... Be7 {[%clk 0:02:56]} 7.
d5 {[%clk 0:02:55]} 7... Na5 {[%clk 0:02:42.1]} 8. b3 {[%clk 0:02:45.3]} 8...
Bb7 {[%clk 0:02:34.8]} 9. Nc3 {[%clk 0:02:39.8]} 9... O-O {[%clk 0:02:31.2]} 10.
Nd4 {[%clk 0:02:30.7]} 10... Bc5 {[%clk 0:02:21.9]} 11. Bb2 {[%clk 0:02:12.8]}
11... exd5 {[%clk 0:02:09.5]} 12. cxd5 {[%clk 0:02:09.2]} 12... Re8 {[%clk
0:02:01.8]} 13. Qd3 {[%clk 0:01:51]} 13... Rb8 {[%clk 0:01:49.6]} 14. Rac1
{[%clk 0:01:37.4]} 14... Ba8 {[%clk 0:01:45.9]} 15. Nf5 {[%clk 0:01:11.2]} 15...
Bf8 {[%clk 0:01:30.3]} 16. Nb5 {[%clk 0:01:07.5]} 16... c6 {[%clk 0:01:22.7]}
17. Nbd6 {[%clk 0:01:04.6]} 17... Bxd6 {[%clk 0:01:18.7]} 18. Nxd6 {[%clk
0:01:05.5]} 18... Rf8 {[%clk 0:01:18.6]} 19. e4 {[%clk 0:01:00.2]} 19... Nb7
{[%clk 0:01:07.6]} 20. Nf5 {[%clk 0:00:51.6]} 20... Nc5 {[%clk 0:01:01.7]} 21.
Qd4 {[%clk 0:00:51.5]} 21... d6 {[%clk 0:00:49.5]} 22. g4 {[%clk 0:00:34.7]}
22... h6 {[%clk 0:00:47.4]} 23. h4 {[%clk 0:00:34.3]} 23... Re8 {[%clk
0:00:36.1]} 24. Rfe1 {[%clk 0:00:32.9]} 24... Re5 {[%clk 0:00:33.8]} 25. dxc6
{[%clk 0:00:21.2]} 25... Bxc6 {[%clk 0:00:30.2]} 26. g5 {[%clk 0:00:20.6]} 26...
hxg5 {[%clk 0:00:23.8]} 27. Nxd6 {[%clk 0:00:20.6]} 27... Re6 {[%clk 0:00:19.1]}
28. Rcd1 {[%clk 0:00:14.3]} 28... Qe7 {[%clk 0:00:16.8]} 29. hxg5 {[%clk
0:00:12.9]} 29... Nh5 {[%clk 0:00:16.2]} 30. Bf3 {[%clk 0:00:09.8]} 30... Rd8
{[%clk 0:00:13.8]} 31. e5 {[%clk 0:00:07.3]} 31... Rdxd6 {[%clk 0:00:12.5]} 32.
exd6 {[%clk 0:00:03.5]} 32... Rxe1+ {[%clk 0:00:11.5]} 33. Rxe1 {[%clk
0:00:01.9]} 33... Qxe1+ {[%clk 0:00:11.5]} 34. Kg2 {[%clk 0:00:02.8]} 34... Qe6
{[%clk 0:00:11.2]} 35. Bxc6 {[%clk 0:00:01.6]} 35... f6 {[%clk 0:00:10.7]} 0-1

[Event "*** Titled Tuesday Blitz"]
[Site "Chess.com"]
[Date "2020.05.26"]
[Round "5"]
[White "ChristopherYoo"]
[Black "econpower"]
[Result "0-1"]
[WhiteElo "2871"]
[BlackElo "2648"]
[TimeControl "180+1"]
[EndTime "10:56:33 PDT"]
[Termination "econpower won on time"]

1. e4 {[%clk 0:03:00.9]} 1... d6 {[%clk 0:02:59.5]} 2. d4 {[%clk 0:02:59.9]}
2... Nf6 {[%clk 0:02:59.8]} 3. Nc3 {[%clk 0:02:59.9]} 3... e5 {[%clk 0:03:00.5]}
4. Nf3 {[%clk 0:02:50.5]} 4... Nbd7 {[%clk 0:03:00.5]} 5. Rg1 {[%clk 0:02:51.1]}
5... g6 {[%clk 0:02:55.9]} 6. g4 {[%clk 0:02:48.8]} 6... Bg7 {[%clk 0:02:56.4]}
7. g5 {[%clk 0:02:49.2]} 7... Nh5 {[%clk 0:02:56.3]} 8. Be3 {[%clk 0:02:49.2]}
8... a6 {[%clk 0:02:48.9]} 9. a3 {[%clk 0:02:46.8]} 9... b5 {[%clk 0:02:49]} 10.
Qd2 {[%clk 0:02:36.8]} 10... Bb7 {[%clk 0:02:46]} 11. O-O-O {[%clk 0:02:36.7]}
11... Nb6 {[%clk 0:02:45.9]} 12. b3 {[%clk 0:02:30.9]} 12... Qe7 {[%clk
0:02:33.5]} 13. d5 {[%clk 0:02:17.8]} 13... Nf4 {[%clk 0:02:27.7]} 14. Ne2
{[%clk 0:02:14.2]} 14... Nxe2+ {[%clk 0:02:26.3]} 15. Bxe2 {[%clk 0:02:15.1]}
15... Nd7 {[%clk 0:02:13.4]} 16. Qa5 {[%clk 0:02:10.6]} 16... Rc8 {[%clk
0:02:07.8]} 17. h4 {[%clk 0:02:03]} 17... h5 {[%clk 0:02:06.4]} 18. Ne1 {[%clk
0:01:55.5]} 18... c6 {[%clk 0:02:05.4]} 19. dxc6 {[%clk 0:01:53.7]} 19... Rxc6
{[%clk 0:02:04.5]} 20. Nd3 {[%clk 0:01:52.6]} 20... Rc8 {[%clk 0:01:55.9]} 21.
f3 {[%clk 0:01:51.2]} 21... d5 {[%clk 0:01:54.3]} 22. exd5 {[%clk 0:01:27.4]}
22... e4 {[%clk 0:01:52]} 23. fxe4 {[%clk 0:01:22.7]} 23... Qxe4 {[%clk
0:01:50.9]} 24. Bd2 {[%clk 0:01:19.9]} 24... O-O {[%clk 0:01:48.9]} 25. Rge1
{[%clk 0:01:16.5]} 25... Qd4 {[%clk 0:01:46.6]} 26. Bb4 {[%clk 0:00:58.7]} 26...
Rfe8 {[%clk 0:01:23.8]} 27. Bf1 {[%clk 0:00:52.2]} 27... Qa1+ {[%clk 0:01:16.6]}
28. Kd2 {[%clk 0:00:50.4]} 28... Rxc2+ {[%clk 0:01:16.8]} 29. Kxc2 {[%clk
0:00:49.6]} 29... Qa2+ {[%clk 0:01:17.5]} 30. Nb2 {[%clk 0:00:25.6]} 30... Qxb2+
{[%clk 0:01:14.7]} 31. Kd3 {[%clk 0:00:25.9]} 31... Qxb3+ {[%clk 0:01:14.4]} 32.
Kd2 {[%clk 0:00:25.5]} 32... Qb2+ {[%clk 0:01:10.5]} 33. Kd3 {[%clk 0:00:25.9]}
33... Ne5+ {[%clk 0:01:08.7]} 34. Rxe5 {[%clk 0:00:22.5]} 34... Qxe5 {[%clk
0:01:09.6]} 35. Bc3 {[%clk 0:00:02.2]} 35... Qxd5+ {[%clk 0:00:59.3]} 36. Kc2
{[%clk 0:00:02.6]} 36... Qa2+ {[%clk 0:00:59.3]} 37. Kc1 {[%clk 0:00:03.1]}
37... Bxc3 {[%clk 0:00:48.7]} 38. Qxc3 {[%clk 0:00:04]} 38... Rc8 {[%clk
0:00:47.8]} 39. Bc4 {[%clk 0:00:04.3]} 39... Qxc4 {[%clk 0:00:46.9]} 40. Qxc4
{[%clk 0:00:03.3]} 40... Rxc4+ {[%clk 0:00:47.5]} 41. Kb2 {[%clk 0:00:04.2]}
41... Rxh4 {[%clk 0:00:45.5]} 42. Rd7 {[%clk 0:00:04.2]} 42... Be4 {[%clk
0:00:41.4]} 43. Kc3 {[%clk 0:00:04.3]} 43... Bf5 {[%clk 0:00:40.5]} 44. Ra7
{[%clk 0:00:04.3]} 44... Ra4 {[%clk 0:00:41]} 45. Kd2 {[%clk 0:00:03]} 45...
Rxa3 {[%clk 0:00:40.8]} 46. Ke2 {[%clk 0:00:03]} 46... h4 {[%clk 0:00:40.8]} 47.
Kf2 {[%clk 0:00:03.4]} 47... h3 {[%clk 0:00:41.3]} 48. Ra8+ {[%clk 0:00:02.5]}
48... Kg7 {[%clk 0:00:41.4]} 49. Kg1 {[%clk 0:00:01.7]} 49... b4 {[%clk
0:00:41.4]} 50. Re8 {[%clk 0:00:02]} 50... a5 {[%clk 0:00:41]} 51. Re5 {[%clk
0:00:01.8]} 51... b3 {[%clk 0:00:40.4]} 52. Rb5 {[%clk 0:00:02.4]} 52... a4
{[%clk 0:00:40.2]} 53. Kh2 {[%clk 0:00:02.4]} 53... Ra2+ {[%clk 0:00:39.9]} 54.
Kg3 {[%clk 0:00:01.2]} 54... b2 {[%clk 0:00:40.4]} 0-1

[Event "*** Titled Tuesday Blitz"]
[Site "Chess.com"]
[Date "2020.05.26"]
[Round "5"]
[White "diablanni"]
[Black "moistketchup"]
[Result "1-0"]
[WhiteElo "2323"]
[BlackElo "2138"]
[TimeControl "180+1"]
[EndTime "10:56:36 PDT"]
[Termination "diablanni won on time"]

1. e4 {[%clk 0:02:59.4]} 1... g6 {[%clk 0:02:56.3]} 2. d4 {[%clk 0:02:58.9]}
2... Bg7 {[%clk 0:02:56.9]} 3. Nc3 {[%clk 0:02:58]} 3... d6 {[%clk 0:02:57.4]}
4. Be3 {[%clk 0:02:56.8]} 4... a6 {[%clk 0:02:55.5]} 5. Nf3 {[%clk 0:02:48.8]}
5... Nf6 {[%clk 0:02:39.1]} 6. h3 {[%clk 0:02:47.1]} 6... O-O {[%clk 0:02:35.9]}
7. Bd3 {[%clk 0:02:43.8]} 7... b6 {[%clk 0:02:26.7]} 8. O-O {[%clk 0:02:42.3]}
8... Bb7 {[%clk 0:02:25.7]} 9. Re1 {[%clk 0:02:42.5]} 9... Nc6 {[%clk
0:02:19.8]} 10. a3 {[%clk 0:02:38.7]} 10... e5 {[%clk 0:02:19.5]} 11. dxe5
{[%clk 0:02:33.8]} 11... Nxe5 {[%clk 0:02:15.8]} 12. Nxe5 {[%clk 0:02:33.8]}
12... dxe5 {[%clk 0:02:16.7]} 13. Qe2 {[%clk 0:02:28.2]} 13... Qe7 {[%clk
0:02:13]} 14. Rad1 {[%clk 0:02:25.8]} 14... Rfd8 {[%clk 0:02:12.6]} 15. f3
{[%clk 0:02:25.8]} 15... h6 {[%clk 0:02:08.4]} 16. Bc4 {[%clk 0:02:25.1]} 16...
b5 {[%clk 0:01:50.1]} 17. Ba2 {[%clk 0:02:20.4]} 17... c6 {[%clk 0:01:35.3]} 18.
Bb6 {[%clk 0:02:10.6]} 18... Rxd1 {[%clk 0:01:26.7]} 19. Rxd1 {[%clk 0:02:10.3]}
19... Nd7 {[%clk 0:01:27.4]} 20. Bf2 {[%clk 0:01:58.6]} 20... Nf8 {[%clk
0:01:20.5]} 21. Qd2 {[%clk 0:01:55.4]} 21... Ne6 {[%clk 0:00:57.1]} 22. Qd7
{[%clk 0:01:52.2]} 22... Re8 {[%clk 0:00:36.7]} 23. Bxe6 {[%clk 0:01:47.8]}
23... fxe6 {[%clk 0:00:36.1]} 24. Qxe7 {[%clk 0:01:37]} 24... Rxe7 {[%clk
0:00:37]} 25. Bc5 {[%clk 0:01:35.8]} 25... Rf7 {[%clk 0:00:21.3]} 26. Rd8+
{[%clk 0:01:32.8]} 26... Kh7 {[%clk 0:00:15.3]} 27. Kf1 {[%clk 0:01:12.7]} 27...
g5 {[%clk 0:00:10.3]} 28. b4 {[%clk 0:00:58]} 28... Kg6 {[%clk 0:00:09.1]} 29.
Na2 {[%clk 0:00:52.1]} 29... Kf6 {[%clk 0:00:07.4]} 30. Nc1 {[%clk 0:00:48.7]}
30... h5 {[%clk 0:00:06.8]} 31. Nd3 {[%clk 0:00:37.9]} 31... g4 {[%clk
0:00:07.2]} 32. hxg4 {[%clk 0:00:34.6]} 32... hxg4 {[%clk 0:00:07.2]} 33. Bd6
{[%clk 0:00:30.5]} 33... gxf3 {[%clk 0:00:05]} 34. gxf3 {[%clk 0:00:30.5]} 34...
Kg5 {[%clk 0:00:03.4]} 35. Kg2 {[%clk 0:00:26.4]} 35... Bf6 {[%clk 0:00:03]} 36.
Rg8+ {[%clk 0:00:22.1]} 36... Kh6 {[%clk 0:00:02.6]} 37. Bxe5 {[%clk 0:00:13.7]}
37... Kh7 {[%clk 0:00:01.3]} 38. Rg4 {[%clk 0:00:09.7]} 1-0